bitfinex/quotes_ETHUSD_20250824
["timestamp","ask_amount","ask_price","bid_price","bid_amount"]
[1756059498170,0.02,4934.8,4934.1,0.66]
[1756059498575,0.02,4934.8,4934.3,0.66]
[1756059498789,0.02,4934.8,4934.5,0.66]
[1756059499189,0.02,4934.8,4934.7,0.66]
[1756059499514,0.02,4934.8,4934.7,1.23112]
[1756059500392,0.02,4934.8,4934.7,1.53642]
[1756059503090,0.4639,4937.9,4934.7,1.53642]
[1756059503091,0.53772813,4940.3,4934.8,4.07876]
[1756059503289,2.0219,4939.9,4936.0,0.66]
[1756059503503,1.558,4939.9,4936.8,3.66]
[1756059503698,1.558,4939.9,4938.2,0.66]
[1756059503988,0.31674112,4941.1,4938.4,3.66]
[1756059504190,0.4639,4942.1,4938.6,0.66]
[1756059504427,0.4639,4941.7,4938.8,0.66]
[1756059504718,0.4639,4941.7,4938.1,0.10084944]
[1756059504719,0.4639,4941.7,4939.0,0.66]
[1756059504939,0.4639,4941.7,4939.2,3.66]
[1756059505298,0.4639,4941.7,4939.4,0.66]
[1756059505844,0.1016,4940.6,4940.0,0.66]
[1756059506025,0.1016,4940.6,4939.8,0.66]
[1756059506987,0.1008,4940.9,4940.3,0.66]
[1756059507193,1.558,4941.1,4939.4,0.66]
[1756059507194,0.16588,4940.8,4939.4,0.66]
[1756059507446,0.16588,4940.8,4939.8,0.1016]
[1756059507598,0.16588,4940.8,4939.1,1.558]
[1756059507599,0.16588,4940.8,4940.3,0.66]
[1756059507800,0.16588,4940.8,4940.5,0.66]
[1756059508311,0.16588,4940.8,4940.2,0.1016]
[1756059508312,0.16588,4940.8,4940.3,0.66]
[1756059508504,0.26668,4940.8,4940.3,0.66]
[1756059509300,0.1008,4940.8,4940.3,0.66]
[1756059509501,1.557,4941.9,4940.7,0.3063]
[1756059509706,0.1008,4941.4,4940.7,0.4079]
[1756059510328,0.1008,4941.4,4940.8,0.4509]
[1756059510639,71.00365019,4942.5,4941.4,0.66]
[1756059510840,71.00365019,4942.5,4941.7,0.3063]
[1756059511142,0.002,4941.9,4941.7,0.9663]
[1756059511327,0.002,4941.9,4941.7,0.66]
[1756059511805,0.002,4941.9,4941.7,1.4172]
[1756059512203,0.002,4941.9,4941.7,0.9663]
[1756059512441,0.002,4941.9,4941.7,0.66]
[1756059513718,0.002,4941.9,4941.0,0.66]
[1756059514705,0.5154,4941.8,4941.0,0.66]
[1756059515522,0.002,4941.8,4941.0,0.66]
[1756059517452,0.002,4941.8,4941.7,0.9663]
[1756059517617,0.002,4941.8,4940.5,0.4509]
[1756059517817,0.002,4941.8,4940.6,0.66]
[1756059518248,0.002,4941.8,4940.4,0.66]
[1756059518450,0.002,4941.8,4940.8,0.66]
[1756059518923,0.002,4941.8,4940.4,0.66]
[1756059519123,0.002,4941.8,4940.8,0.4509]
[1756059519855,0.002,4941.8,4940.2,4.557]
[1756059520043,0.002,4941.8,4940.8,0.66]
[1756059520549,0.1028,4941.8,4941.2,0.66]
[1756059521722,0.1028,4941.8,4941.2,1.1109]
[1756059522029,0.002,4941.8,4941.5,0.66]
[1756059522345,0.002,4941.8,4941.7,0.9663]
[1756059523537,0.002,4941.8,4941.7,1.4172]
[1756059524167,0.002,4941.8,4941.7,4.71452]
[1756059525663,0.002,4941.8,4941.7,5.27552]
[1756059525860,0.002,4941.8,4941.7,1.71452]
[1756059526039,0.002,4941.8,4941.7,5.27552]
[1756059526242,0.002,4941.8,4941.7,1.4172]
[1756059526446,0.002,4941.8,4941.7,0.3063]
[1756059526666,0.002,4941.8,4941.3,1.556]
[1756059526868,0.002,4941.8,4941.7,0.3063]
[1756059527276,0.002,4941.8,4941.7,1.4172]
[1756059527741,0.002,4941.8,4941.7,0.9663]
[1756059528256,0.002,4941.8,4941.7,0.3063]
[1756059528595,0.002,4941.8,4941.7,4.4172]
[1756059528883,0.002,4941.8,4941.7,6.77172]
[1756059529184,0.002,4941.8,4941.7,10.34372]
[1756059529542,0.002,4941.8,4941.7,9.5442]
[1756059530156,0.002,4941.8,4941.7,5.9732]
[1756059530489,0.002,4941.8,4941.7,9.5482]
[1756059530986,0.002,4941.8,4941.7,9.5502]
[1756059531560,0.002,4941.8,4941.7,5.9732]
[1756059531762,0.002,4941.8,4941.7,10.14652]
[1756059531962,0.002,4941.9,4941.8,0.66]
[1756059532156,0.002,4941.9,4941.8,4.4031]
[1756059532459,0.002,4941.9,4941.8,4.9791]
[1756059533495,0.002,4941.9,4941.8,5.0799]
[1756059533675,0.002,4942.3,4941.8,9.103222]
[1756059533880,0.002,4942.3,4942.2,15.39679101]
[1756059534084,0.002,4942.3,4942.2,15.80359101]
[1756059534457,0.002,4942.3,4942.2,16.24069101]
[1756059534975,0.002,4942.3,4942.2,19.81469101]
[1756059535175,0.002,4942.3,4942.2,21.2482419]
[1756059535693,0.002,4942.3,4942.2,27.5499089]
[1756059535919,70.45565019,4942.5,4942.3,3.66]
[1756059536204,59.81210648,4942.5,4942.4,5.1]
[1756059536381,59.81210648,4942.5,4942.4,21.5142921]
[1756059536693,59.81210648,4942.5,4942.4,25.8315181]
[1756059536992,59.81210648,4942.5,4942.4,25.9323181]
[1756059537200,46.87800181,4942.5,4942.4,25.9323181]
[1756059537402,10.1010101,4944.9,4942.4,25.9323181]
[1756059537403,9.6510101,4944.9,4944.2,3.66]
[1756059537584,8.8168101,4944.9,4944.8,15.14359101]
[1756059537784,8.8168101,4944.9,4944.8,24.14655001]
[1756059538097,79.74762832,4945.7,4944.9,3.66]
[1756059538302,79.74762832,4945.7,4945.6,15.39679101]
[1756059538512,79.74762832,4945.7,4945.6,20.55279101]
[1756059538801,79.74762832,4945.7,4945.6,17.15402723]
[1756059539000,79.74762832,4945.7,4945.6,9.02323622]
[1756059539165,77.59373854,4945.7,4945.6,20.76002723]
[1756059539361,77.59373854,4945.7,4945.6,20.18258523]
[1756059539614,77.59373854,4945.7,4945.6,20.80302723]
[1756059539807,77.59373854,4945.7,4945.6,20.70522723]
[1756059540108,77.59373854,4945.7,4944.8,0.76075431]
[1756059540316,77.59373854,4945.7,4945.3,0.10088132]
[1756059540525,77.59373854,4945.7,4945.6,14.73679101]
[1756059540689,77.59373854,4945.7,4945.6,6.666]
[1756059541275,76.3155321,4945.7,4945.6,3.66]
[1756059541515,76.3155321,4945.7,4945.6,19.07179101]
[1756059541809,76.3155321,4945.7,4945.6,28.26918501]
[1756059541985,65.67198839,4945.7,4945.6,28.26918501]
[1756059542190,65.59749902,4945.7,4945.6,28.26918501]
[1756059542375,65.59749902,4945.7,4945.6,26.95269801]
[1756059542576,65.59749902,4945.7,4945.6,23.26969801]
[1756059542915,45.6873878,4945.7,4945.6,21.17760401]
[1756059543077,41.69862682,4945.7,4945.6,21.17760401]
[1756059543421,41.39492162,4945.7,4945.6,21.17960401]
[1756059543605,41.39492162,4945.7,4945.6,21.18060401]
[1756059543776,41.39492162,4945.7,4945.6,26.63618601]
[1756059543978,30.75137791,4945.7,4945.6,26.63618601]
[1756059544209,30.75137791,4945.7,4945.6,22.95018601]
[1756059544410,30.75137791,4945.7,4945.6,26.63918601]
[1756059544602,30.20137791,4945.7,4945.6,25.51917901]
[1756059544798,21.99570708,4945.7,4945.6,42.87976201]
[1756059545127,11.04845817,4945.7,4945.6,39.52476201]
[1756059545288,10.1010101,4947.7,4947.6,0.49017524]
[1756059545289,9.23924311,4947.7,4947.6,0.49017524]
[1756059545619,9.23924311,4947.7,4947.6,30.25088001]
[1756059545926,9.23924311,4947.7,4947.6,7.375]
[1756059546913,9.23924311,4947.7,4947.6,13.78676605]
[1756059547116,9.23924311,4947.7,4947.6,7.53932005]
[1756059547290,9.23924311,4947.7,4947.6,3.81432005]
[1756059547629,9.70604311,4947.7,4946.5,1.554]
[1756059547780,9.70604311,4947.7,4946.7,0.15251155]
[1756059548112,9.70604311,4947.7,4946.5,1.554]
[1756059548113,0.4668,4947.6,4946.8,3.726]
[1756059548814,0.4668,4947.6,4946.6,0.66]
[1756059549017,0.4668,4947.6,4946.5,1.554]
[1756059549018,0.4668,4947.6,4946.8,3.0]
[1756059549515,9.23924311,4947.7,4947.0,3.0]
[1756059549726,4.1918,4947.6,4945.4,0.607055]
[1756059549930,0.00982476,4945.7,4942.6,1.554]
[1756059550104,0.00982476,4944.9,4944.0,0.607055]
[1756059550300,0.4668,4944.8,4944.0,0.607055]
[1756059550501,0.4668,4944.8,4944.0,3.745]
[1756059550690,0.4668,4944.8,4943.6,1.554]
[1756059550691,0.4668,4944.8,4944.7,0.1008]
[1756059550893,0.4668,4944.8,4944.6,3.746]
[1756059551093,0.4668,4944.8,4944.7,3.8468]
[1756059551330,0.4668,4945.6,4944.7,5.3]
[1756059551528,0.4668,4946.3,4944.9,0.66]
[1756059551732,0.4668,4946.3,4945.5,0.1008]
[1756059551937,0.4668,4946.9,4946.2,0.1008]
[1756059552098,0.4668,4946.9,4946.8,0.1008]
[1756059552300,0.4668,4946.9,4946.8,6.8518]
[1756059552498,9.70604311,4947.7,4946.9,0.66]
[1756059552711,9.70604311,4947.7,4946.9,3.66]
[1756059552936,9.70604311,4947.7,4947.6,0.1008]
[1756059553136,11.02758479,4947.7,4946.1,1.554]
[1756059553440,0.00982476,4947.2,4944.5,1.554]
[1756059553638,0.00982476,4946.5,4945.0,3.754]
[1756059553799,4.2198,4946.4,4945.1,3.0]
[1756059554000,0.4668,4946.3,4945.0,3.754]
[1756059554205,0.4668,4946.3,4945.1,3.0]
[1756059554426,0.00982476,4946.2,4945.0,3.754]
[1756059554761,0.00982476,4945.9,4944.9,3.75]
[1756059554966,0.4668,4945.8,4944.9,3.75]
[1756059555171,0.00982476,4945.3,4944.5,1.554]
[1756059555369,0.00982476,4945.3,4943.3,11.73679101]
[1756059555370,0.00982476,4944.8,4943.8,1.554]
[1756059555664,0.00982476,4945.2,4943.8,1.554]
[1756059555867,0.00982476,4945.2,4944.8,0.02]
[1756059556069,0.00982476,4944.9,4944.8,0.02]
[1756059556468,0.00982476,4944.9,4943.1,1.554]
[1756059556672,0.00982476,4943.7,4942.4,1.554]
[1756059556844,0.00982476,4944.1,4942.5,3.749]
[1756059557042,1.554,4944.8,4942.4,13.29079101]
[1756059557043,0.4668,4944.4,4942.4,13.29079101]
[1756059557246,0.4668,4944.4,4942.9,3.749]
[1756059557463,0.4668,4944.4,4942.2,0.607625]
[1756059557464,0.00982476,4943.7,4942.2,0.607625]
[1756059557668,0.00982476,4942.4,4941.8,0.02]
[1756059557879,0.00982476,4941.9,4941.7,2.525]
[1756059558090,3.76,4941.8,4941.7,1.6708]
[1756059558291,1.56382476,4941.9,4941.7,1.6708]
[1756059558577,1.554,4942.9,4941.7,1.6708]
[1756059558744,0.00982476,4941.8,4941.7,1.6708]
[1756059558941,5.323,4942.4,4941.7,1.6708]
[1756059559141,0.00982476,4942.4,4941.7,1.6708]
[1756059559342,0.00982476,4943.4,4941.9,3.0]
[1756059559537,0.00982476,4943.4,4942.0,0.66]
[1756059559742,0.00982476,4944.3,4943.1,3.66]
[1756059560040,0.31639425,4946.0,4942.6,0.66]
[1756059560041,0.00982476,4943.6,4942.6,0.66]
[1756059560241,0.00982476,4943.3,4941.8,3.0]
[1756059560444,0.00982476,4943.3,4941.7,1.6708]
[1756059560667,0.00982476,4943.3,4941.8,0.66]
[1756059560839,0.00982476,4943.6,4941.8,4.0971]
[1756059561040,0.00982476,4943.5,4942.1,0.66]
[1756059561264,5.334,4944.7,4942.3,3.66]
[1756059561265,0.00982476,4944.3,4942.3,3.66]
[1756059561466,0.00982476,4943.8,4942.4,3.779]
[1756059561670,0.00982476,4944.3,4942.5,3.66]
[1756059562051,3.78,4944.7,4942.5,3.66]
[1756059562262,4.857,4946.7,4943.0,3.66]
[1756059562263,1.554,4945.6,4943.0,3.66]
[1756059562462,0.1554,4945.5,4943.2,0.66]
[1756059562662,1.554,4945.8,4943.4,3.66]
[1756059562867,0.00982476,4945.0,4943.9,11.73679101]
[1756059563085,0.00982476,4945.0,4944.0,3.66]
[1756059563253,0.00982476,4945.5,4944.9,0.1008]
[1756059563459,0.00982476,4945.0,4944.9,0.1008]
[1756059563699,0.00982476,4944.9,4944.1,1.554]
[1756059563859,0.00982476,4944.6,4944.2,3.0]
[1756059564203,0.002,4946.4,4944.8,0.1008]
[1756059564386,0.00982476,4945.7,4945.0,3.0]
[1756059564692,0.00982476,4945.4,4944.9,3.0]
[1756059564861,0.00982476,4945.8,4945.6,0.1008]
[1756059565057,0.00982476,4945.4,4944.5,3.774]
[1756059565291,0.00982476,4945.4,4944.2,3.774]
[1756059565467,0.00982476,4945.4,4945.3,0.1008]
[1756059565662,0.002,4946.4,4945.3,0.1008]
[1756059565858,0.00982476,4945.4,4945.3,0.1008]
[1756059566403,0.00982476,4943.9,4943.4,1.554]
[1756059566559,0.00982476,4943.6,4942.8,0.02]
[1756059566754,0.00982476,4943.9,4943.8,0.1008]
[1756059566984,0.00982476,4944.3,4943.8,3.775]
[1756059567288,0.00982476,4944.3,4943.9,3.4511]
[1756059567498,0.00982476,4944.3,4944.2,0.1008]
[1756059568988,17.59620724,4944.3,4944.2,0.1008]
[1756059569161,0.00982476,4942.9,4942.8,0.02]
[1756059569675,0.00982476,4942.9,4942.8,0.1208]
[1756059570468,0.00982476,4942.9,4942.8,0.11738989]
[1756059571889,0.00982476,4943.1,4942.8,0.11738989]
[1756059574304,1.554,4944.2,4943.0,0.1008]
[1756059574606,1.83229506,4944.2,4943.0,0.1008]
[1756059574835,0.00982476,4943.4,4942.8,0.46768989]
[1756059574987,0.00982476,4943.5,4942.8,0.01658989]
[1756059575188,0.00982476,4943.4,4943.3,0.1008]
[1756059575424,1.554,4944.2,4942.8,0.01658989]
[1756059575425,0.00982476,4943.0,4942.8,0.01658989]
[1756059575634,1.554,4944.2,4942.9,0.4511]
[1756059575815,1.554,4944.2,4942.8,0.01658989]
[1756059576133,0.00982476,4942.9,4942.8,0.01658989]
[1756059576628,0.00982476,4942.9,4942.8,0.11738989]
[1756059576992,0.1944,4943.5,4942.8,0.11738989]
[1756059577191,0.00982476,4942.9,4942.8,0.11738989]
[1756059578888,0.00982476,4942.9,4942.8,0.01658989]
[1756059579723,17.63422476,4942.9,4942.8,0.01658989]
[1756059579928,19.65394724,4942.9,4942.8,0.01658989]
[1756059581107,19.45954724,4942.9,4942.8,0.01658989]
[1756059581496,17.43982476,4942.9,4942.8,0.01658989]
[1756059582711,17.53882476,4942.9,4942.8,0.01658989]
[1756059583525,17.529,4942.9,4942.8,0.01658989]
[1756059583831,17.53882476,4942.9,4942.8,0.01658989]
[1756059584137,17.43,4942.9,4942.8,0.11738989]
[1756059584308,17.73132476,4942.9,4942.8,0.11738989]
[1756059584498,17.43,4942.9,4942.8,0.11738989]
[1756059585043,17.43982476,4942.9,4942.8,0.11738989]
[1756059585243,17.43,4942.9,4942.8,0.11738989]
[1756059585540,17.43982476,4942.9,4942.8,0.11738989]
[1756059585839,17.98906146,4942.9,4942.8,0.11738989]
[1756059586050,17.72842476,4942.9,4942.8,0.11738989]
[1756059587227,17.72842476,4942.9,4942.8,0.01658989]
[1756059589725,21.45342476,4942.9,4942.8,0.01658989]
[1756059592337,21.15782476,4942.9,4942.8,0.01658989]
[1756059592539,21.15782476,4942.9,4942.8,0.11738989]
[1756059593331,21.148,4942.9,4942.8,0.11738989]
[1756059593544,21.148,4942.9,4942.8,0.77448989]
[1756059593545,17.43982476,4942.9,4942.8,0.77448989]
[1756059594558,17.43982476,4942.9,4942.8,0.01658989]
[1756059596067,3.715,4943.2,4942.8,0.01658989]
[1756059597270,3.715,4943.2,4943.1,0.2928]
[1756059597639,0.002,4943.4,4943.1,0.7579]
[1756059597840,0.002,4943.4,4943.2,0.4651]
[1756059598164,0.002,4943.4,4943.3,0.2928]
[1756059598533,0.002,4943.4,4943.3,0.7579]
[1756059599574,0.002,4944.2,4943.3,1.4179]
[1756059599775,0.002,4944.2,4943.8,18.05239362]
[1756059599974,0.002,4944.2,4943.8,19.90019362]
[1756059600178,0.002,4944.2,4943.8,20.36529362]
[1756059600375,0.002,4944.2,4943.8,24.73529362]
[1756059600533,0.002,4944.2,4943.8,20.36529362]
[1756059600738,0.002,4944.2,4943.8,9.0239]
[1756059601168,0.002,4944.2,4943.8,9.6839]
[1756059601436,0.002,4944.2,4943.8,21.39268695]
[1756059602987,0.002,4944.2,4943.8,28.16472095]
[1756059603138,0.002,4944.2,4943.9,3.66]
[1756059603339,0.002,4944.2,4944.1,3.9528]
[1756059603593,0.002,4944.2,4944.1,15.723662]
[1756059603885,0.002,4944.2,4944.1,12.699514]
[1756059604041,0.002,4944.2,4944.1,8.2257]
[1756059604238,0.002,4944.2,4944.1,8.2247]
[1756059604466,0.002,4944.2,4944.1,0.8587]
[1756059604675,0.002,4944.2,4944.1,0.1008]
[1756059604895,0.101,4944.2,4944.1,0.1008]
[1756059605707,0.2945,4944.2,4944.1,0.1008]
[1756059606077,0.2945,4944.2,4942.8,0.01658989]
[1756059606402,0.2945,4944.2,4943.8,0.1008]
[1756059606575,0.1935,4944.1,4943.8,0.1008]
[1756059606780,0.0999,4943.9,4943.8,0.1008]
[1756059606976,0.2925,4943.9,4943.8,0.1008]
[1756059607205,0.0999,4943.9,4943.8,0.1008]
[1756059607403,0.0999,4943.9,4943.8,0.1208]
[1756059607706,1.8475,4943.9,4943.8,0.1208]
[1756059607871,2.03245,4943.9,4943.8,0.1208]
[1756059608199,2.13325,4943.9,4943.8,0.02]
[1756059608400,1.94065,4943.9,4943.8,0.02]
[1756059608803,2.03965,4943.9,4943.8,0.02]
[1756059611606,5.69965,4943.9,4943.8,0.02]
[1756059611814,10.55865,4943.9,4943.8,0.02]
[1756059612312,10.55865,4943.9,4943.0,1.0]
[1756059612313,3.66,4943.8,4943.0,1.0]
[1756059612509,3.66,4943.8,4942.8,0.01658989]
[1756059612510,0.66,4943.0,4942.8,0.01658989]
[1756059612678,0.66,4943.0,4942.9,0.001]
[1756059613005,8.906,4943.0,4942.9,0.001]
[1756059613511,9.406,4943.0,4942.9,0.001]
[1756059613874,9.405,4943.0,4941.7,0.2338]
[1756059614213,9.405,4943.0,4936.8,0.02]
[1756059614214,1.16,4938.9,4936.8,0.02]
[1756059614384,0.66,4938.0,4936.8,0.02]
[1756059614583,20.79578695,4937.9,4936.8,0.02]
[1756059614799,24.27808561,4937.9,4936.8,0.02]
[1756059615009,23.50563473,4937.9,4936.8,0.02]
[1756059615185,3.66,4937.8,4936.8,0.02]
[1756059615385,3.66,4937.0,4936.8,0.02]
[1756059615586,41.79938285,4936.9,4936.8,0.02]
[1756059615816,10.6208787,4936.9,4936.8,0.02]
[1756059616018,7.6208787,4936.9,4936.8,0.02]
[1756059616324,0.66,4936.9,4936.8,0.02]
[1756059616522,1.555,4937.7,4936.8,0.02]
[1756059616890,0.66,4937.6,4936.8,0.02]
[1756059617325,1.555,4937.7,4936.8,0.02]
[1756059617528,0.66,4937.6,4936.8,0.02]
[1756059617722,0.66,4937.4,4936.8,0.02]
[1756059617925,0.92489085,4937.5,4936.8,0.02]
[1756059618184,0.66,4937.8,4936.8,0.02]
[1756059618446,1.555,4938.6,4936.8,0.02]
[1756059618736,1.555,4939.4,4936.9,2.0201]
[1756059618936,3.887,4939.2,4937.0,0.4651]
[1756059619094,3.0,4939.1,4937.0,0.4651]
[1756059619293,0.8442,4939.0,4937.0,0.4651]
[1756059619493,3.889,4939.5,4937.0,0.4651]
[1756059619689,0.14855993,4939.8,4937.0,0.4651]
[1756059619902,1.556,4940.2,4937.0,0.4651]
[1756059620309,1.7071316,4940.2,4937.0,0.4651]
[1756059620648,1.556,4940.2,4937.0,0.4651]
[1756059620794,0.5446,4940.1,4937.0,0.4651]
[1756059620992,0.66,4940.0,4937.0,0.4651]
[1756059621392,0.5446,4940.1,4937.0,0.4651]
[1756059621594,1.556,4940.2,4937.0,0.4651]
[1756059621818,0.3167077,4942.6,4937.0,0.4651]
[1756059621819,0.15307049,4940.9,4937.7,3.0]
[1756059622023,1.556,4941.9,4937.9,3.0]
[1756059622024,3.885,4941.8,4937.9,3.0]
[1756059622231,3.5441,4941.7,4938.0,2.0086]
[1756059622428,0.6983612,4941.7,4938.1,3.4526]
[1756059622631,0.6983612,4941.7,4938.1,3.0]
[1756059622924,0.5441,4941.7,4938.2,0.4526]
[1756059623135,0.02,4939.8,4938.5,3.0]
[1756059623430,0.02,4939.8,4938.6,0.4526]
[1756059624049,0.02,4939.8,4939.7,0.1016]
[1756059624203,0.02,4939.8,4939.7,1.6576]
[1756059624398,0.02,4939.8,4939.7,2.1102]
[1756059625209,0.02,4941.8,4939.8,3.0]
[1756059625408,0.02,4941.8,4939.8,8.3166]
[1756059625717,0.02,4941.8,4939.9,0.4526]
[1756059626040,0.02,4941.8,4941.6,0.1008]
[1756059626206,0.02,4941.8,4941.6,1.6568]
[1756059626411,0.02,4941.8,4941.7,0.4526]
[1756059627140,0.02,4941.8,4941.0,0.4526]
[1756059627447,0.1008,4941.3,4940.6,1.6576]
[1756059627830,0.02,4941.8,4940.6,1.556]
[1756059628032,0.1008,4940.8,4940.6,1.556]
[1756059628347,0.1008,4940.8,4939.8,1.556]
[1756059628648,0.0354,4941.8,4939.8,1.556]
[1756059628649,0.1016,4940.0,4939.8,1.556]
[1756059629446,1.556,4941.3,4939.8,1.556]
[1756059629447,0.1016,4940.4,4939.8,1.556]
[1756059629661,0.66,4941.2,4939.8,2.0086]
[1756059629830,0.1016,4940.3,4939.8,2.0086]
[1756059630257,0.1016,4940.3,4939.8,1.556]
[1756059630585,0.1016,4940.3,4939.9,0.4526]
[1756059630767,0.1016,4940.3,4939.8,1.556]
[1756059633566,0.0154,4941.2,4939.8,1.556]
[1756059633776,0.1016,4939.9,4939.8,1.556]
[1756059633951,0.02,4941.8,4939.8,2.3111]
[1756059634150,0.1008,4941.1,4939.9,0.4526]
[1756059634480,0.1008,4941.1,4940.4,0.1016]
[1756059634646,0.1008,4941.1,4940.5,0.4526]
[1756059634850,0.02,4941.8,4941.0,0.3025]
[1756059635073,0.1208,4941.8,4941.0,1.9593]
[1756059635278,0.1208,4941.8,4941.0,1.6568]
[1756059635461,0.1008,4941.3,4941.0,1.556]
[1756059635662,0.02,4941.8,4941.2,0.3025]
[1756059635984,0.1008,4941.6,4941.1,0.4526]
[1756059636284,0.1008,4941.6,4941.0,1.556]
[1756059636285,0.02,4941.8,4941.0,1.556]
[1756059636489,2.136,4940.2,4936.8,0.021]
[1756059636649,5.406,4941.7,4936.3,0.001]
[1756059636650,10.98113688,4937.9,4936.3,0.001]
[1756059636847,0.1016,4936.4,4936.3,0.001]
[1756059637052,0.7616,4936.4,4936.3,0.001]
[1756059638993,0.1016,4936.4,4936.3,0.001]
[1756059639993,0.1016,4936.4,4936.3,0.4536]
[1756059640692,1.556,4938.4,4936.3,0.4536]
[1756059640990,0.1016,4936.5,4936.3,0.4536]
[1756059641290,4.24355369,4938.3,4936.3,0.001]
[1756059641589,0.1016,4936.4,4936.3,0.001]
[1756059641897,0.1016,4936.4,4936.3,0.4536]
[1756059642052,0.1016,4936.7,4936.3,0.4536]
[1756059642258,0.1016,4936.7,4936.4,0.4526]
[1756059642469,0.1016,4937.2,4936.5,0.1016]
[1756059642675,0.1016,4937.5,4936.6,0.5542]
[1756059642979,0.1016,4937.2,4936.6,0.4526]
[1756059643908,3.66,4936.6,4936.3,0.001]
[1756059644611,1.557,4936.8,4936.3,0.001]
[1756059644811,0.66,4936.7,4936.3,0.001]
[1756059646623,3.66,4936.5,4936.3,0.001]
[1756059646822,0.66,4936.5,4936.3,0.001]
[1756059647117,0.8817,4936.5,4936.3,0.001]
[1756059649983,0.2217,4936.5,4936.3,0.001]
[1756059650188,0.66,4936.7,4936.3,0.001]
[1756059650926,3.0,4937.4,4936.3,0.001]
[1756059650927,0.66,4937.3,4936.3,0.001]
[1756059651129,0.66,4937.5,4936.4,0.4526]
[1756059651616,0.66,4937.5,4936.3,0.001]
[1756059651817,0.66,4937.3,4936.3,0.001]
[1756059652380,4.684,4937.3,4936.3,0.001]
[1756059652587,0.66,4937.1,4936.3,0.001]
[1756059652787,0.66,4936.9,4936.3,0.001]
[1756059654018,0.7616,4936.4,4936.3,0.001]
[1756059654789,0.99346,4936.4,4936.3,0.001]
[1756059656401,3.99346,4936.4,4936.3,0.001]
[1756059658239,0.33346,4936.4,4936.3,0.001]
[1756059658439,0.1016,4936.4,4936.3,0.001]
[1756059658615,0.1016,4936.4,4936.3,0.4636]
[1756059659135,0.1016,4936.4,4936.3,0.001]
[1756059660121,0.7616,4936.4,4936.3,0.001]
[1756059660749,7.7496,4936.4,4936.3,0.001]
[1756059660949,8.68026,4936.4,4936.3,0.001]
[1756059661451,11.15771439,4936.4,4936.3,0.001]
[1756059662447,11.59096762,4936.4,4936.3,0.001]
[1756059662839,41.59096762,4936.4,4936.3,0.001]
[1756059663216,5.796,4935.9,4935.8,0.021]
[1756059663439,37.39833256,4935.9,4935.8,0.021]
[1756059663640,41.37433256,4935.9,4935.8,0.021]
[1756059664357,41.91630885,4935.9,4935.8,0.021]
[1756059664540,41.37433256,4935.9,4935.8,0.021]
[1756059664742,41.91630885,4935.9,4935.8,0.021]
[1756059665138,41.37433256,4935.9,4935.8,0.021]
[1756059665465,42.098123,4935.9,4935.8,0.021]
[1756059665641,41.37433256,4935.9,4935.8,0.021]
[1756059666150,2.136,4935.0,4933.1,0.4626]
[1756059666336,23.70618654,4934.9,4933.1,0.4626]
[1756059666664,53.70618654,4934.9,4933.1,0.4626]
[1756059667060,52.29699895,4934.9,4933.1,0.4626]
[1756059667263,5.83913256,4934.9,4931.9,1.558]
[1756059667436,6.80313256,4934.9,4934.0,0.4626]
[1756059667640,4.15187933,4934.9,4934.8,0.4826]
[1756059667870,0.18787933,4934.9,4934.8,0.7971]
[1756059668256,0.18787933,4935.2,4934.8,0.7971]
[1756059668437,0.60346726,4935.1,4934.8,0.02]
[1756059668636,0.18787933,4935.0,4934.8,0.02]
[1756059668843,4.627,4934.9,4934.8,0.02]
[1756059669072,0.66,4934.4,4933.9,1.43]
[1756059669370,15.42205398,4934.0,4933.9,1.43]
[1756059669567,18.07678176,4934.0,4933.9,1.43]
[1756059670071,17.88890243,4934.0,4933.9,1.43]
[1756059670364,50.21393881,4934.0,4933.9,1.43]
[1756059670765,48.07793881,4934.0,4933.9,1.43]
[1756059671154,18.07793881,4934.0,4933.9,1.43]
[1756059671357,0.18903638,4934.0,4933.9,1.8926]
[1756059671669,3.981,4934.1,4933.9,1.43]
[1756059672367,3.66,4934.0,4933.9,1.43]
[1756059672571,3.84877428,4934.0,4933.9,1.43]
[1756059672739,5.88011791,4934.0,4933.9,1.43]
[1756059673855,9.20011791,4934.0,4933.9,1.43]
[1756059674275,0.18877428,4934.0,4933.9,2.2071]
[1756059674573,0.54474989,4936.2,4933.9,1.8926]
[1756059674774,0.1886825,4936.1,4934.0,3.4626]
[1756059674973,3.0,4936.5,4934.1,0.4626]
[1756059675181,3.987,4936.6,4934.1,0.4626]
[1756059675182,0.02,4935.8,4934.1,0.4626]
[1756059675343,17.30605398,4935.7,4933.9,1.43]
[1756059675549,1.92123716,4935.6,4934.0,0.4626]
[1756059675779,5.544,4935.7,4934.0,0.4626]
[1756059675980,0.1016,4934.3,4934.0,0.4626]
[1756059676480,0.66,4934.2,4934.1,0.4626]
[1756059676852,4.005,4935.2,4934.1,0.4626]
[1756059677045,0.1016,4934.2,4934.1,0.4626]
[1756059677461,4.004,4935.6,4934.1,0.4626]
[1756059677462,0.1016,4934.3,4934.1,0.4626]
[1756059677859,0.1016,4934.3,4934.2,0.4626]